bitfinex/quotes_ETHUSD_20251019
["timestamp","ask_amount","ask_price","bid_price","bid_amount"]
[1760900933394,4.9124,4000.7,4000.6,2.50162505]
[1760900933987,4.9124,4000.7,4000.6,2.87402505]
[1760900934302,3.2224,4000.7,4000.6,2.87402505]
[1760900934501,3.2224,4000.7,4000.6,2.50162505]
[1760900934668,3.26596487,4000.7,4000.6,2.50162505]
[1760900942116,3.26596487,4000.7,4000.6,0.002]
[1760900943720,17.63777193,4000.7,4000.6,0.002]
[1760900943924,18.25729936,4000.7,4000.6,0.002]
[1760900944305,18.21373449,4000.7,4000.6,0.002]
[1760900944928,9.23080649,4000.7,4000.6,0.002]
[1760900945241,21.87345149,4000.7,4000.6,0.002]
[1760900946051,9.23080649,4000.7,4000.6,0.002]
[1760900946207,21.87345149,4000.7,4000.6,0.002]
[1760900947019,9.23080649,4000.7,4000.6,0.002]
[1760900947220,21.91627349,4000.7,4000.6,0.002]
[1760900947937,23.60627349,4000.7,4000.6,0.002]
[1760900948143,8.42124392,4000.7,4000.6,0.002]
[1760900948437,23.64984161,4000.7,4000.6,0.002]
[1760900948827,23.32606418,4000.7,4000.6,0.002]
[1760900949227,10.64059718,4000.7,4000.6,0.002]
[1760900949428,23.96284591,4000.7,4000.6,0.002]
[1760900949637,24.71490184,4000.7,4000.6,0.002]
[1760900950142,25.10702025,4000.7,4000.6,0.002]
[1760900950344,32.23710325,4000.7,4000.6,0.002]
[1760900950946,32.23710325,4000.7,4000.1,0.002]
[1760900950947,27.276724,4000.2,4000.1,0.002]
[1760900951110,38.26991449,4000.2,4000.1,0.002]
[1760900951312,16.32856549,4000.2,4000.1,0.002]
[1760900951509,47.51646871,4000.2,4000.1,0.002]
[1760900953355,17.51646871,4000.2,4000.1,0.002]
[1760900953660,47.51646871,4000.2,4000.1,0.002]
[1760900954448,0.6336,3999.7,3996.8,4.68729482]
[1760900954711,0.6336,3999.7,3995.7,0.2148]
[1760900954712,0.6336,3999.1,3998.4,2.50097215]
[1760900955012,0.6336,3998.9,3998.5,2.87333126]
[1760900955321,1.728,3998.7,3998.4,2.5009966]
[1760900955520,1.728,3998.7,3998.1,2.87357071]
[1760900955726,1.728,3998.7,3998.4,2.50098784]
[1760900956023,1.728,3998.7,3998.1,0.3724]
[1760900956228,0.6336,3998.5,3997.8,0.3724]
[1760900956413,0.6336,3998.3,3997.6,0.3724]
[1760900957217,0.6336,3998.3,3997.6,2.8738754]
[1760900957747,0.04359179,3998.2,3997.8,2.50137569]
[1760900957949,3.163,3998.1,3997.8,2.50137569]
[1760900958145,3.163,3998.1,3997.6,2.8738928]
[1760900958331,3.163,3998.1,3997.7,0.3724]
[1760900958536,3.163,3998.1,3997.8,2.50136653]
[1760900958770,3.163,3998.1,3997.9,2.50130774]
[1760900958974,3.163,3998.1,3997.7,0.3724]
[1760900959160,3.163,3998.1,3997.6,2.50145935]
[1760900959497,3.163,3998.1,3997.8,2.50134929]
[1760900959657,3.163,3998.1,3997.8,2.8737166]
[1760900959848,3.163,3998.1,3997.7,2.50141831]
[1760900960254,3.163,3998.1,3997.8,2.50137276]
[1760900961255,3.163,3998.1,3997.5,2.87395036]
[1760900961256,3.163,3998.1,3997.9,2.50129918]
[1760900961650,3.163,3998.1,3997.9,2.50127296]
[1760900962061,3.163,3998.1,3997.5,2.50150461]
[1760900962268,3.163,3998.1,3997.6,2.50144476]
[1760900962468,3.6369,3998.1,3997.8,2.50136786]
[1760900962960,3.163,3998.1,3997.9,2.50129094]
[1760900963389,3.7966,3998.1,3998.0,2.50125062]
[1760900964599,3.7966,3998.1,3997.9,2.50130515]
[1760900965088,3.7966,3998.1,3997.0,0.1577]
[1760900965089,3.163,3998.1,3998.0,2.87365062]
[1760900965481,3.163,3998.1,3998.0,2.50125062]
[1760900965980,3.163,3998.1,3998.0,2.87365062]
[1760900966776,3.163,3998.1,3997.8,0.3724]
[1760900967082,3.163,3998.1,3998.0,2.50125062]
[1760900967970,3.163,3998.1,3998.0,2.81525062]
[1760900968382,3.163,3998.1,3998.0,3.56738574]
[1760900969913,3.163,3998.1,3998.0,3.69218574]
[1760900972180,3.20658379,3998.1,3998.0,3.69218574]
[1760900974329,3.20658379,3998.1,3998.0,3.31978574]
[1760900974920,3.20658379,3998.1,3998.0,2.56765062]
[1760900975236,3.20658379,3998.1,3998.0,2.44285062]
[1760900975389,0.1248,3998.0,3997.8,0.002]
[1760900975593,0.4343,3998.0,3997.8,0.002]
[1760900975795,0.4343,3998.0,3997.9,2.50125979]
[1760900976427,3.163,3998.1,3998.0,2.50125062]
[1760900977305,3.163,3998.1,3997.0,0.90999544]
[1760900977306,0.1248,3996.8,3994.7,1.78930273]
[1760900977506,0.1308,3996.3,3994.7,0.444]
[1760900977725,2.3616,3995.7,3994.7,0.444]
[1760900978029,2.3616,3995.5,3994.8,0.02503254]
[1760900978230,3.19,3995.4,3994.8,0.02503254]
[1760900978433,3.94284859,3995.4,3994.9,0.02503191]
[1760900978617,4.33542359,3995.4,3994.9,0.02503191]
[1760900978801,3.19,3995.4,3994.9,0.444]
[1760900979197,3.61199045,3995.4,3994.3,0.232]
[1760900979424,3.19,3995.4,3994.7,2.50330862]
[1760900979597,3.19,3995.4,3994.6,2.50336997]
[1760900980229,3.19,3995.4,3994.4,0.444]
[1760900980433,3.19,3995.4,3994.7,2.50325825]
[1760900980593,0.2382,3995.3,3994.5,2.50338709]
[1760900980794,0.2382,3995.3,3994.3,0.232]
[1760900980795,0.2382,3995.3,3994.6,2.50336303]
[1760900981007,0.2382,3995.2,3994.6,2.50336303]
[1760900981308,0.2382,3995.1,3994.6,2.50336303]
[1760900981510,3.19,3995.4,3994.8,2.50324692]
[1760900982246,3.19,3995.4,3994.6,2.50333102]
[1760900982396,3.19,3995.4,3994.7,2.50328642]
[1760900982923,0.04360444,3995.3,3994.8,2.50323684]
[1760900983097,0.04360444,3995.3,3994.1,0.232]
[1760900983302,0.04360444,3995.3,3994.9,2.9471397]
[1760900984028,0.04360444,3995.3,3994.9,2.5031397]
[1760900984535,0.04360444,3995.3,3994.7,0.02503316]
[1760900984727,0.04360444,3995.3,3995.1,2.50306625]
[1760900985239,0.04360444,3995.3,3994.2,2.50363026]
[1760900985428,3.19,3995.4,3995.2,2.5030036]
[1760900985634,3.19,3995.4,3995.3,2.94694095]
[1760900986943,3.19,3995.4,3995.3,2.97197035]
[1760900987113,3.19,3995.4,3995.3,2.94694095]
[1760900987571,3.19,3995.4,3995.3,3.07174095]
[1760900989808,3.19,3995.4,3995.3,3.09677035]
[1760900990013,3.19,3995.4,3995.3,3.07174095]
[1760900992039,3.2336121,3995.4,3995.3,3.07174095]
[1760900993177,3.2336121,3995.4,3995.3,2.94694095]
[1760900995554,3.2336121,3995.4,3995.3,2.50294095]
[1760901001907,3.2336121,3995.4,3995.3,2.52797035]
[1760901002060,3.2336121,3995.4,3995.3,2.94694095]
[1760901002786,3.2336121,3995.4,3995.3,6.85998819]
[1760901003192,3.2336121,3995.4,3995.3,6.98478819]
[1760901004664,3.2336121,3995.4,3995.3,3.07174095]
[1760901004864,3.2336121,3995.4,3995.3,7.00038819]
[1760901006299,3.2336121,3995.4,3995.3,7.00238819]
[1760901009295,3.2336121,3995.4,3995.3,6.54278819]
[1760901009468,3.19,3995.4,3995.3,7.00238819]
[1760901013117,0.04360862,3995.6,3995.5,2.50281566]
[1760901013407,1.69,3996.7,3996.6,2.5021268]
[1760901013607,4.87,3996.7,3996.6,2.5021268]
[1760901015213,3.18,3996.7,3996.6,6.41517404]
[1760901019402,3.18,3996.7,3996.6,6.87537404]
[1760901020199,3.18,3996.7,3996.6,6.41517404]
[1760901020609,3.18,3996.7,3996.6,2.5021268]
[1760901020797,3.64989975,3996.7,3996.6,2.5021268]
[1760901021010,3.64989975,3996.7,3995.4,3.91304724]
[1760901021212,4.33934724,3996.6,3995.0,0.4602]
[1760901021397,4.33934724,3996.6,3996.0,2.50246474]
[1760901021598,0.4263,3996.5,3995.2,3.91304724]
[1760901021808,0.4263,3996.5,3996.1,2.50239205]
[1760901022119,0.4263,3996.4,3996.1,2.50239205]
[1760901022321,0.4263,3996.4,3996.2,2.50237654]
[1760901022616,0.6523,3996.3,3996.2,2.50237654]
[1760901025333,0.6533,3996.3,3996.2,2.50237654]
[1760901030413,0.3481,3996.3,3996.2,2.50237654]
[1760901031541,0.1258,3996.3,3996.2,2.50237654]
[1760901032214,0.1258,3996.3,3996.2,2.52740031]
[1760901032616,0.1258,3996.3,3996.2,2.50237654]
[1760901034026,0.001,3996.3,3996.2,3.08737654]
[1760901034223,0.001,3996.3,3996.2,6.93240031]
[1760901034445,0.001,3996.3,3996.2,6.90737654]
[1760901043751,0.001,3996.3,3996.2,6.44717654]
[1760901043951,0.001,3996.3,3996.2,6.89787654]
[1760901045339,0.001,3996.3,3996.2,6.44717654]
[1760901049021,0.4546,3996.3,3996.2,6.44717654]
[1760901050383,0.4546,3996.3,3996.2,2.62717654]
[1760901052792,0.4546,3996.3,3996.2,2.50237725]
[1760901053835,0.001,3996.3,3996.2,2.50237725]
[1760901054266,0.4546,3996.3,3996.2,2.50237725]
[1760901061386,0.001,3996.3,3996.2,2.50237725]
[1760901061560,0.4546,3996.3,3995.7,0.1248]
[1760901061886,0.4546,3996.3,3996.2,2.50237725]
[1760901062189,0.4546,3996.3,3995.6,0.002]
[1760901062378,0.1248,3996.1,3995.9,2.50252778]
[1760901062688,0.1248,3996.1,3995.6,2.50474957]
[1760901062689,3.64118827,3996.0,3995.6,0.002]
[1760901062987,0.2247,3995.7,3995.6,0.002]
[1760901063390,0.676,3995.7,3995.6,0.002]
[1760901064478,0.676,3995.7,3995.6,2.50475302]
[1760901064665,0.676,3995.7,3995.6,0.002]
[1760901066758,0.676,3995.7,3995.6,2.50475302]
[1760901068563,0.676,3995.7,3995.6,0.002]
[1760901071411,8.98492337,3995.7,3995.6,0.002]
[1760901071635,13.55584027,3995.7,3995.6,0.002]
[1760901071850,25.58126127,3995.7,3995.6,0.002]
[1760901072149,16.43758927,3995.7,3995.6,0.002]
[1760901072310,16.53798293,3995.7,3995.6,0.002]
[1760901072826,36.36977193,3995.7,3995.6,0.002]
[1760901074515,36.41339914,3995.7,3995.6,0.002]
[1760901078848,36.80606364,3995.7,3995.6,0.002]
[1760901080742,36.80706364,3995.7,3995.6,0.002]
[1760901080947,39.97606364,3995.7,3995.6,0.002]
[1760901081247,33.13654095,3995.3,3995.2,1e-08]
[1760901081416,47.39188593,3995.3,3995.2,1e-08]
[1760901081746,47.84318593,3995.3,3995.2,1e-08]
[1760901081921,47.93927201,3995.3,3995.2,1e-08]
[1760901082424,48.37457201,3995.3,3995.2,1e-08]
[1760901083346,48.71479852,3995.3,3995.2,1e-08]
[1760901085633,48.26349852,3995.3,3995.2,1e-08]
[1760901085832,18.71479852,3995.3,3995.2,1e-08]
[1760901086064,48.71479852,3995.3,3995.2,1e-08]
[1760901087728,48.71479852,3995.3,3993.8,0.4353]
[1760901087729,0.6336,3993.9,3993.8,0.4353]
[1760901087937,18.79466032,3993.9,3993.8,0.4353]
[1760901088265,13.392599,3993.9,3993.8,0.4353]
[1760901088430,13.43623099,3993.9,3993.8,0.4353]
[1760901088930,14.16543599,3993.9,3993.8,0.4353]
[1760901090036,16.66911031,3993.9,3993.8,0.4353]
[1760901090452,14.16529199,3993.9,3993.8,0.4353]
[1760901090878,0.6336,3993.7,3993.5,0.4353]
[1760901091178,0.1248,3993.5,3993.0,0.1631]
[1760901091367,3.17,3993.4,3993.0,0.1631]
[1760901091567,3.17,3993.3,3993.0,0.1631]
[1760901091878,3.17,3993.3,3993.1,0.4353]
[1760901092280,2.38018827,3993.2,3993.0,0.1631]
[1760901092448,12.79219095,3993.1,3993.0,0.5984]
[1760901092882,12.79219095,3993.1,3992.9,0.70959817]
[1760901093182,16.65937466,3993.0,3992.9,0.70959817]
[1760901093391,32.50601443,3990.4,3990.3,1e-08]
[1760901093552,17.94881153,3990.4,3990.3,1e-08]
[1760901093884,5.5076,3990.4,3990.3,0.43530001]
[1760901094110,5.9429,3990.4,3990.3,0.43530001]
[1760901094286,5.3093,3990.4,3990.3,0.43530001]
[1760901094587,4.874,3990.4,3990.3,0.43530001]
[1760901095157,4.874,3990.4,3990.3,2.94137724]
[1760901095396,3.182,3990.4,3990.3,0.43530001]
[1760901095564,3.182,3990.4,3990.3,2.94137724]
[1760901095773,3.182,3990.4,3990.3,0.43530001]
[1760901096485,11.256528,3990.4,3990.3,1e-08]
[1760901096652,5.8618,3990.4,3990.3,0.46510001]
[1760901096849,3.182,3990.4,3990.3,0.46510001]
[1760901097262,11.661983,3990.3,3988.2,0.4651]
[1760901097462,1.73792132,3990.2,3989.4,2.50659752]
[1760901097653,3.211,3990.1,3989.6,2.50651694]
[1760901097868,3.211,3990.0,3989.9,2.50632847]
[1760901098065,3.211,3990.0,3989.9,6.89707474]
[1760901098268,0.75361641,3991.8,3989.9,6.89707474]
[1760901098269,3.216,3990.7,3989.9,4.39074627]
[1760901098517,3.216,3990.7,3990.1,3.92564627]
[1760901098678,3.216,3990.7,3990.6,2.50588883]
[1760901098883,3.216,3990.7,3990.6,6.8966351]
[1760901100392,0.04367013,3991.7,3990.6,4.39074627]
[1760901100597,6.480452,3992.8,3991.6,0.1743]
[1760901100908,0.04366086,3992.2,3991.7,2.97028894]
[1760901101103,3.216,3992.1,3991.6,0.1743]
[1760901101308,3.216,3992.0,3991.8,0.4651]
[1760901101503,3.216,3991.9,3991.8,0.4651]
[1760901102705,0.1248,3991.8,3991.6,0.1743]
[1760901102907,3.216,3991.9,3991.7,0.4651]
[1760901107179,3.216,3991.9,3991.6,0.1743]
[1760901107402,3.216,3991.9,3991.6,0.6394]
[1760901108818,3.216,3991.9,3991.7,0.4651]
[1760901108979,3.216,3991.9,3991.6,0.1743]
[1760901109310,3.216,3991.9,3991.7,0.4651]
[1760901109507,3.216,3991.9,3991.7,2.97028238]
[1760901109707,3.216,3991.9,3991.8,0.4651]
[1760901112197,0.1248,3991.8,3991.6,2.67955916]
[1760901112509,0.1248,3991.8,3991.7,0.4651]
[1760901112708,0.1248,3991.8,3991.6,2.67955916]
[1760901112923,0.1248,3991.8,3991.7,0.4651]
[1760901113730,0.1248,3991.8,3991.7,2.97029828]
[1760901114637,0.1248,3991.8,3991.6,0.1743]
[1760901114928,0.1248,3991.8,3991.7,2.97029828]
[1760901116203,3.216,3991.9,3991.8,2.50513552]
[1760901116429,3.216,3991.9,3991.8,2.97023552]
[1760901118011,1.693,3993.0,3992.5,2.50468322]
[1760901118216,0.1248,3992.7,3992.6,2.50463357]
[1760901118404,0.1248,3992.7,3992.6,2.96973357]
[1760901118736,1.41518,3995.3,3992.6,0.4651]
[1760901118737,3.211,3993.4,3992.6,0.4651]
[1760901118900,3.6831,3993.4,3992.7,2.50456401]
[1760901119103,3.6831,3993.4,3992.8,2.50449607]
[1760901119600,3.6831,3993.4,3992.0,2.50495473]
[1760901119601,4.07693883,3993.4,3991.6,2.67951036]
[1760901119798,8.702841,3993.2,3991.7,0.4651]
[1760901120101,1.728,3993.3,3992.2,2.50488227]
[1760901120434,0.2369,3992.3,3991.0,0.5799]
[1760901120636,3.6841,3992.2,3991.5,2.50532125]
[1760901120810,3.6841,3992.2,3991.2,2.50549823]
[1760901121010,3.212,3992.2,3991.3,0.49015449]
[1760901121242,3.212,3992.2,3992.1,2.50494727]
[1760901121539,3.212,3992.2,3992.1,2.67924727]
[1760901121706,3.212,3992.2,3992.1,3.14434727]
[1760901122303,0.04365284,3993.1,3992.9,2.5043886]
[1760901122510,3.213,3992.7,3992.6,2.50463357]
[1760901123339,3.25664693,3992.7,3992.6,2.50463357]
[1760901124215,3.25664693,3992.7,3992.6,2.96973357]
[1760901124416,3.25664693,3992.7,3992.6,2.50463357]
[1760901124919,3.25664693,3992.7,3992.6,2.96973357]
[1760901126310,3.25664693,3992.7,3992.6,2.50463357]
[1760901126838,3.25664693,3992.7,3992.6,2.95523357]
[1760901127345,3.25664693,3992.7,3992.6,2.50463357]
[1760901128231,3.25664693,3992.7,3992.6,2.95523357]
[1760901128872,3.25664693,3992.7,3992.6,3.08003357]
[1760901129169,0.04364693,3992.7,3992.6,3.08003357]
[1760901129351,0.04364693,3992.7,3992.6,2.95523357]
[1760901133068,0.04364693,3992.7,3992.6,2.50463357]
[1760901136873,0.04464693,3992.7,3992.6,2.50463357]
[1760901137678,0.04464693,3992.7,3992.6,2.9672799]
[1760901138565,0.04464693,3992.7,3992.6,6.7872799]
[1760901138769,0.04464693,3992.7,3992.6,6.76223357]
[1760901139279,0.04464693,3992.7,3992.6,6.88703357]
[1760901140084,0.04464693,3992.7,3992.6,6.44943357]
[1760901141261,0.04464693,3992.7,3992.6,6.88703357]
[1760901141458,0.04464693,3992.7,3992.6,3.06703357]
[1760901141693,0.04464693,3992.7,3992.6,4.8200799]
[1760901141978,0.001,3992.7,3992.6,4.8200799]
[1760901143762,0.001,3992.7,3992.6,4.79503357]
[1760901144076,0.001,3992.7,3992.6,4.8200799]
[1760901144649,0.001,3992.7,3992.6,8.73698968]
[1760901144849,0.001,3992.7,3992.6,8.71194335]
[1760901147080,0.001,3992.7,3992.6,11.91594335]
[1760901147612,0.001,3993.1,3993.0,2.50438266]
[1760901147811,0.001,3993.1,3993.0,11.35329244]
[1760901148105,0.001,3993.1,3993.0,11.91569244]
[1760901150991,0.001,3993.1,3993.0,11.91369244]
[1760901151616,0.001,3993.1,3993.0,16.46420222]
[1760901151794,0.6997,3994.4,3994.3,6.42047736]
[1760901152300,0.27113088,3994.4,3994.3,6.54527736]
[1760901152604,0.74083088,3994.4,3994.3,6.54527736]
[1760901153191,0.04363088,3994.4,3994.3,6.54527736]
[1760901153504,0.51333088,3994.4,3994.3,6.54527736]
[1760901154012,0.04363088,3994.4,3994.3,6.54527736]
[1760901154182,0.1402,3995.3,3994.3,6.54527736]
[1760901154373,0.2282,3995.1,3995.0,2.50312891]
[1760901154711,0.7004,3995.1,3994.3,3.91690978]
[1760901155017,0.2282,3995.1,3995.0,2.50312891]
[1760901155176,0.2282,3995.1,3994.9,2.50317504]
[1760901155679,0.4335,3995.0,3994.9,2.50317504]
[1760901156003,0.2292,3995.1,3995.0,2.50312891]
[1760901156505,0.6627,3995.1,3995.0,2.50312891]
[1760901158672,0.6627,3995.1,3994.9,2.50317956]
[1760901158996,0.4335,3995.0,3994.9,2.50317956]
[1760901162011,0.4771209,3995.0,3994.9,2.50317956]
[1760901163305,0.0436209,3995.0,3994.9,2.52821147]
[1760901164184,0.0436209,3995.0,3994.9,2.51381147]
[1760901166833,0.4771209,3995.0,3994.7,0.1248]
[1760901166985,0.2298,3994.8,3994.6,2.50337471]
[1760901167186,0.4335,3994.7,3994.4,0.1248]
[1760901167388,0.4335,3994.6,3994.4,0.1248]
[1760901167685,0.2298,3994.8,3994.4,0.1248]
[1760901167686,0.4335,3994.5,3994.4,0.1248]
[1760901168002,0.4335,3994.5,3994.4,2.6283049]
[1760901168618,0.2298,3994.8,3994.7,2.50331689]
[1760901169119,0.6633,3994.8,3994.7,2.50331689]
[1760901171237,0.70692411,3994.8,3994.7,2.50331689]
[1760901172234,0.04362411,3994.8,3994.7,2.50331689]
[1760901172605,0.47712411,3994.8,3994.4,0.1248]
[1760901172804,0.04362411,3994.8,3994.7,2.50331689]
[1760901173338,0.47712411,3994.8,3994.7,2.50331689]
[1760901174719,0.4335,3994.8,3994.7,2.50331689]
[1760901178622,0.001,3994.9,3994.8,2.50325423]
[1760901179340,0.001,3994.9,3994.7,2.50330994]
[1760901179341,0.4345,3994.9,3994.7,2.50330994]
[1760901179639,0.001,3994.9,3994.8,2.50325423]
[1760901180225,0.4345,3994.9,3994.8,2.50325423]
[1760901181540,0.001,3994.9,3994.8,2.50325423]
[1760901182260,0.001,3994.9,3994.8,2.95025423]
[1760901182462,0.001,3994.9,3994.8,3.07505423]
[1760901183142,0.001,3994.9,3994.8,2.62805423]
[1760901183313,0.001,3994.9,3994.8,3.07505423]
[1760901185151,0.001,3994.9,3994.8,3.10818677]
[1760901185468,0.001,3994.9,3994.8,6.92818677]
[1760901185669,0.001,3994.9,3994.8,6.90315423]
[1760901188167,0.001,3994.9,3994.8,8.63115423]
[1760901188374,0.001,3994.9,3994.8,16.51956186]
[1760901188851,0.001,3994.9,3994.8,17.15316186]
[1760901189947,0.001,3994.9,3994.8,13.96416186]
[1760901190272,0.001,3994.9,3994.8,17.15216186]
[1760901190569,0.001,3994.9,3994.8,8.17605423]
[1760901190772,0.001,3994.9,3994.8,16.51856186]
[1760901191439,0.04460957,3994.9,3994.8,16.51856186]
[1760901191636,0.04460957,3994.9,3994.8,13.33056186]
[1760901191835,0.04460957,3994.9,3994.8,16.51856186]
[1760901193373,0.001,3995.1,3995.0,4.23112891]
[1760901193597,0.001,3995.1,3995.0,4.35592891]
[1760901194011,0.001,3995.1,3995.0,8.00792891]
[1760901194477,0.001,3995.1,3995.0,4.35592891]
[1760901194797,0.001,3995.1,3995.0,7.54292891]
[1760901195378,0.001,3995.1,3995.0,8.00692891]
[1760901196004,0.001,3995.1,3995.0,7.54292891]
[1760901196368,0.001,3995.1,3995.0,8.00692891]
[1760901196967,0.001,3995.1,3995.0,11.82692891]
[1760901197895,0.001,3995.1,3995.0,11.36292891]
[1760901198798,0.001,3995.1,3995.0,8.17592891]
[1760901198998,0.3177,3995.7,3995.6,2.50275302]
[1760901199304,0.3177,3995.7,3995.6,2.62755302]
[1760901199508,0.001,3996.5,3996.0,2.5025025]
[1760901199897,0.001,3996.5,3996.0,2.52752752]
[1760901201106,0.3352,3996.1,3996.0,2.52752752]
[1760901201511,0.001,3996.1,3996.0,2.5025025]
[1760901201677,0.3352,3996.1,3996.0,2.5025025]
[1760901201874,0.37880747,3996.1,3996.0,2.5025025]
[1760901202608,0.04460747,3996.1,3996.0,2.5025025]
[1760901202813,0.001,3996.1,3996.0,2.5025025]
[1760901204522,0.001,3996.1,3996.0,2.52752752]
[1760901204696,0.001,3996.1,3996.0,2.5025025]
[1760901205793,0.001,3996.1,3996.0,6.9113025]
[1760901205991,0.001,3996.1,3996.0,8.6393025]
[1760901206414,0.001,3996.1,3996.0,8.1753025]
[1760901207419,0.001,3996.1,3996.0,8.6393025]
[1760901207601,0.001,3996.1,3996.0,8.1753025]
[1760901208931,0.3352,3996.1,3996.0,5.6728]
[1760901209429,0.001,3996.1,3996.0,8.1753025]
[1760901210142,0.3352,3996.1,3996.0,8.1753025]
[1760901212426,0.3352,3996.1,3996.0,4.3553025]
[1760901214430,0.37880537,3996.1,3996.0,4.3553025]
[1760901214655,0.04460537,3996.1,3996.0,4.3553025]
[1760901215322,0.001,3996.1,3996.0,4.3553025]
[1760901217454,0.001,3996.1,3996.0,8.1753025]
[1760901218272,0.04460491,3996.1,3996.0,8.1753025]
[1760901218559,0.001,3996.1,3996.0,8.1753025]
[1760901219924,0.3352,3996.1,3996.0,8.1753025]
[1760901220319,0.001,3996.1,3996.0,8.1753025]
[1760901220666,0.3352,3996.1,3996.0,8.1753025]
[1760901221558,0.001,3996.1,3996.0,8.1753025]
[1760901223283,0.04460536,3996.1,3996.0,8.1753025]
[1760901225679,0.001,3996.1,3996.0,8.1753025]
[1760901236176,0.001,3996.1,3996.0,12.5628125]
[1760901236377,0.001,3996.1,3996.0,12.0886125]
[1760901238720,0.001,3996.1,3996.0,8.1753025]
[1760901240714,0.001,3996.1,3996.0,4.3553025]
[1760901240936,0.3352,3996.1,3996.0,0.1248]
[1760901241099,0.3352,3996.1,3995.9,2.50252029]
[1760901241417,0.3358,3996.0,3995.9,2.50252029]
[1760901241614,0.3358,3996.0,3995.7,0.1248]
[1760901241804,0.3358,3995.9,3995.8,2.50262775]
[1760901242615,0.001,3996.1,3996.0,2.5025025]
[1760901242819,0.001,3996.1,3996.0,6.4158125]
[1760901242993,0.001,3996.1,3996.0,8.7428125]
[1760901243612,0.001,3996.1,3996.0,8.2686125]
[1760901245012,0.001,3996.1,3996.0,10.4539225]
[1760901245201,1e-08,3996.3,3996.2,2.50237725]
[1760901245539,0.001,3996.5,3996.4,4.23025202]
[1760901245829,0.001,3996.5,3996.4,11.96356202]
[1760901246035,0.001,3996.5,3996.4,8.72916202]
[1760901260136,0.001,3996.5,3996.4,8.26836202]
[1760901260331,0.001,3996.5,3996.4,8.58246202]
[1760901260654,0.001,3996.5,3996.4,8.68276028]
[1760901261456,0.001,3996.5,3996.4,12.50276028]
[1760901262669,0.001,3996.5,3996.4,15.23986028]
[1760901263170,0.001,3996.5,3996.4,8.15055028]
[1760901263332,0.4368,3996.5,3996.4,11.96356202]
[1760901265072,0.001,3996.5,3996.4,11.96356202]
[1760901270446,0.001,3996.5,3996.4,12.08836202]
[1760901278995,0.001,3996.5,3996.4,12.20836202]
[1760901280702,0.001,3996.5,3996.4,12.98755329]
[1760901292021,0.001,3996.5,3996.4,13.55205329]
[1760901295493,0.061,3996.5,3996.4,13.55205329]
[1760901297428,1e-08,3996.5,3996.4,13.55205329]
[1760901300441,0.34340001,3996.5,3996.4,0.2448]
[1760901300739,0.34340001,3996.5,3996.4,0.12]
[1760901300899,7.40089748,3996.5,3996.4,0.12]
[1760901301227,0.58820001,3996.5,3996.4,2.62225202]
[1760901301398,0.58820001,3996.5,3996.4,0.12]
[1760901301595,0.58820001,3996.5,3996.4,2.62225202]
[1760901302435,0.34340001,3996.5,3996.4,2.62225202]
[1760901303223,0.34340001,3996.5,3996.4,0.12]
[1760901308352,0.34340001,3996.5,3996.4,0.12]
[1760901309613,10.25353701,3996.5,3996.4,0.12]
[1760901309822,11.28335132,3996.5,3996.4,0.12]
[1760901310757,11.34335132,3996.5,3996.4,0.12]
[1760901310920,14.59814568,3996.5,3996.4,0.12]
[1760901311746,18.47341268,3996.5,3996.4,0.12]
[1760901311926,19.49861268,3996.5,3996.4,0.12]
[1760901312729,29.20907368,3996.5,3996.4,0.12]
[1760901312934,26.70688427,3996.5,3996.4,0.12]
[1760901313176,26.70688427,3996.5,3996.4,2.62225202]
[1760901313177,0.04361301,3996.5,3996.4,2.62225202]
[1760901313338,0.40560128,3996.5,3996.4,0.12]
[1760901313668,0.38701301,3996.5,3996.4,0.122]
[1760901313837,0.99452237,3996.5,3996.4,0.122]
[1760901314033,1.01311064,3996.5,3996.4,0.122]
[1760901314229,3.51530005,3996.5,3996.4,0.122]
[1760901314864,1.01311064,3996.5,3996.4,0.122]
[1760901315678,3.51530005,3996.5,3996.4,0.122]
[1760901316238,1.01311064,3996.5,3996.4,0.122]
[1760901316768,3.51530005,3996.5,3996.4,0.122]
[1760901316965,4.13031178,3996.5,3996.4,0.122]
[1760901317134,6.30387078,3996.5,3996.4,0.122]
[1760901317339,6.26025778,3996.5,3996.4,0.122]
[1760901317756,1.70650937,3996.5,3996.4,0.122]
[1760901318843,4.20869878,3996.5,3996.4,0.122]
[1760901319038,7.26737078,3996.5,3996.4,0.122]
[1760901319373,4.20869878,3996.5,3996.4,0.122]
[1760901319533,1.70650937,3996.5,3996.4,0.122]
[1760901319954,4.64218137,3996.5,3996.4,0.122]
[1760901320174,1.70650937,3996.5,3996.4,0.122]
[1760901320974,4.77078037,3996.5,3996.4,0.122]
[1760901321161,1.70650937,3996.5,3996.4,0.122]
[1760901321363,15.80140437,3996.5,3996.4,0.122]
[1760901321561,18.30359378,3996.5,3996.4,0.122]
[1760901322295,18.38195878,3996.5,3996.4,0.122]
[1760901322456,14.77067737,3996.5,3996.4,0.122]
[1760901322661,9.60889037,3996.5,3996.4,0.122]
[1760901323516,14.56110078,3996.5,3996.4,0.122]
[1760901323864,13.56220178,3996.5,3996.4,0.122]
[1760901324556,14.56220178,3996.5,3996.4,0.122]
[1760901324802,12.06001237,3996.5,3996.4,0.122]
[1760901325003,4.22805337,3996.5,3996.4,0.122]
[1760901325164,1.70650937,3996.5,3996.4,0.122]
[1760901325960,0.72950937,3996.5,3996.4,0.122]
[1760901326160,3.63603737,3996.5,3996.4,0.122]
[1760901326365,3.97943737,3996.5,3996.4,0.122]
[1760901326893,3.73139037,3996.5,3996.4,0.122]
[1760901327305,0.60750937,3996.5,3996.4,0.122]
[1760901328079,0.00100001,3996.5,3996.4,0.122]
[1760901330607,0.12580001,3996.5,3996.4,0.122]
[1760901333701,0.12580001,3996.5,3996.4,0.5506]